bitfinex/quotes_BTCUSD_20250505
["timestamp","ask_amount","ask_price","bid_price","bid_amount"]
[1746444183105,0.90516173,94573.0,94572.0,1.57630679]
[1746444183256,0.92504114,94573.0,94572.0,1.57630679]
[1746444183654,1.41704114,94573.0,94572.0,1.57630679]
[1746444183867,1.43470065,94573.0,94572.0,1.57630679]
[1746444184069,1.44570065,94573.0,94572.0,1.54410679]
[1746444184244,1.58308294,94573.0,94572.0,1.54410679]
[1746444184447,1.57808294,94573.0,94572.0,1.54410679]
[1746444184951,1.56742343,94573.0,94572.0,1.54510679]
[1746444185585,1.55642343,94573.0,94572.0,1.54510679]
[1746444185972,1.56742343,94573.0,94572.0,0.59789811]
[1746444186165,1.56742343,94573.0,94572.0,0.53249811]
[1746444186166,1.57747466,94573.0,94572.0,0.53249811]
[1746444186503,1.56758977,94573.0,94572.0,0.52429811]
[1746444186690,1.58213062,94573.0,94572.0,0.19929811]
[1746444187040,0.9514925,94567.0,94566.0,12.66324164]
[1746444187250,1.20701279,94567.0,94566.0,12.66324164]
[1746444187380,1.24726402,94567.0,94566.0,12.66324164]
[1746444187779,1.29572799,94567.0,94566.0,12.65624164]
[1746444188421,1.80772799,94567.0,94566.0,12.65724164]
[1746444189281,1.82472799,94567.0,94566.0,12.65724164]
[1746444189530,1.80813602,94567.0,94566.0,12.64064928]
[1746444189739,1.80813602,94567.0,94566.0,12.6145181]
[1746444190076,1.82472837,94567.0,94566.0,11.3834729]
[1746444190458,1.87472837,94567.0,94566.0,11.3834729]
[1746444190818,1.86272837,94567.0,94566.0,11.3824729]
[1746444191021,1.87472837,94567.0,94566.0,11.3824729]
[1746444191225,1.88926922,94567.0,94566.0,11.3824729]
[1746444191627,1.89714863,94567.0,94566.0,11.3824729]
[1746444191835,1.89214863,94567.0,94566.0,11.3824729]
[1746444192247,1.91114863,94567.0,94566.0,11.3824729]
[1746444192787,1.93014863,94567.0,94566.0,11.3824729]
[1746444193409,1.93014863,94567.0,94566.0,10.46746422]
[1746444193962,1.91814863,94567.0,94566.0,10.46746422]
[1746444194529,1.92914863,94567.0,94566.0,10.46746422]
[1746444194921,1.91814863,94567.0,94566.0,10.43726255]
[1746444195121,1.92614863,94567.0,94566.0,10.43726255]
[1746444195512,1.87048912,94567.0,94566.0,10.4115451]
[1746444195712,1.9117929,94567.0,94566.0,10.38939552]
[1746444195962,1.8907929,94567.0,94566.0,10.38939552]
[1746444196315,1.9117929,94567.0,94566.0,10.38939552]
[1746444197197,1.9117929,94567.0,94566.0,10.37280191]
[1746444197509,1.89520055,94567.0,94566.0,10.37280191]
[1746444198458,1.89620055,94567.0,94566.0,10.37280191]
[1746444199690,2.24648055,94567.0,94566.0,10.37280191]
[1746444200298,2.26307449,94567.0,94566.0,10.37280191]
[1746444200523,2.24648055,94567.0,94566.0,10.35620799]
[1746444201466,2.26307448,94567.0,94566.0,10.35620799]
[1746444202029,2.26307448,94567.0,94566.0,10.32574808]
[1746444202899,2.25507448,94567.0,94566.0,10.32574808]
[1746444203101,2.23407448,94567.0,94566.0,10.32574808]
[1746444203245,2.24507448,94567.0,94566.0,10.32574808]
[1746444203456,2.26707448,94567.0,94566.0,10.32574808]
[1746444208227,2.25048055,94567.0,94566.0,10.32574808]
[1746444209137,2.25048055,94567.0,94566.0,10.31874808]
[1746444211142,2.26707523,94567.0,94566.0,10.31874808]
[1746444211989,2.26707523,94567.0,94566.0,10.30215339]
[1746444213119,2.24448351,94567.0,94566.0,10.30215339]
[1746444213421,2.26497597,94567.0,94566.0,10.30215339]
[1746444214508,2.24448351,94567.0,94566.0,10.30215339]
[1746444215712,2.22788883,94567.0,94566.0,10.30215339]
[1746444215933,2.22788883,94567.0,94566.0,10.28940996]
[1746444216847,2.22788883,94567.0,94566.0,10.28240996]
[1746444218297,2.70758505,94567.0,94566.0,10.28240996]
[1746444218534,2.72788883,94567.0,94566.0,10.28240996]
[1746444218743,2.72788883,94567.0,94566.0,10.26581531]
[1746444219357,2.58206476,94567.0,94566.0,10.26581531]
[1746444219861,2.59865907,94567.0,94566.0,10.26581531]
[1746444220848,2.59865907,94567.0,94566.0,10.26564257]
[1746444224007,2.59865907,94567.0,94566.0,10.25864257]
[1746444227226,2.58206476,94567.0,94566.0,10.25864257]
[1746444227436,2.68758505,94567.0,94566.0,10.25864257]
[1746444230262,2.70417938,94567.0,94566.0,10.24204825]
[1746444231065,2.70417938,94567.0,94566.0,10.23504825]
[1746444231924,2.72583138,94567.0,94566.0,10.23504825]
[1746444233463,2.70923705,94567.0,94566.0,10.21845386]
[1746444234455,2.72583171,94567.0,94566.0,10.21845386]
[1746444235199,2.74632339,94567.0,94566.0,10.21845386]
[1746444235971,2.79924352,94567.0,94566.0,10.21845386]
[1746444236576,2.78264886,94567.0,94566.0,10.21845386]
[1746444236779,2.76064886,94567.0,94566.0,10.19595118]
[1746444236981,2.78464886,94567.0,94566.0,10.18320677]
[1746444237628,2.77364886,94567.0,94566.0,10.18320677]
[1746444237850,2.78664886,94567.0,94566.0,10.18320677]
[1746444238049,2.78664886,94567.0,94566.0,10.17620677]
[1746444239504,2.80324445,94567.0,94566.0,10.17620677]
[1746444239687,2.80324445,94567.0,94566.0,10.15961117]
[1746444239891,2.78664886,94567.0,94566.0,10.15961117]
[1746444240136,2.80324453,94567.0,94566.0,10.15961117]
[1746444240947,2.80324453,94567.0,94566.0,10.15781117]
[1746444241369,2.80324453,94567.0,94566.0,10.15651117]
[1746444242386,2.78159253,94567.0,94566.0,10.15651117]
[1746444242733,2.80136931,94567.0,94566.0,10.15651117]
[1746444243368,2.80136931,94567.0,94566.0,10.04252366]
[1746444244580,2.80136931,94567.0,94566.0,10.02144469]
[1746444245257,2.80136931,94567.0,94566.0,10.01444469]
[1746444246335,2.78477364,94567.0,94566.0,10.01444469]
[1746444246884,2.78577364,94567.0,94566.0,10.01444469]
[1746444247140,2.78577364,94567.0,94566.0,10.00169997]
[1746444247545,4.37350864,94567.0,94566.0,8.38509147]
[1746444247747,4.3713301,94567.0,94566.0,8.28707007]
[1746444248069,4.37614334,94567.0,94566.0,8.19505759]
[1746444248347,2.65038034,94567.0,94566.0,8.19505759]
[1746444248645,2.6165671,94567.0,94566.0,8.19505759]
[1746444249069,2.63038034,94567.0,94566.0,8.19505759]
[1746444249391,2.67340644,94567.0,94566.0,8.19505759]
[1746444249606,2.64740644,94567.0,94566.0,8.19505759]
[1746444250025,2.67440644,94567.0,94566.0,8.17845919]
[1746444250228,2.65440644,94567.0,94566.0,8.12463126]
[1746444250626,2.67240644,94567.0,94566.0,8.12423126]
[1746444250946,2.6545932,94567.0,94566.0,8.07030751]
[1746444251172,2.65327734,94567.0,94566.0,8.07030751]
[1746444251375,2.67309758,94567.0,94566.0,8.07030751]
[1746444251791,2.67309758,94567.0,94566.0,8.06863075]
[1746444251967,2.67309758,94567.0,94566.0,8.05074639]
[1746444252175,2.67309758,94567.0,94566.0,8.03575643]
[1746444252377,2.65453403,94567.0,94566.0,8.02875643]
[1746444252703,2.65453403,94567.0,94566.0,7.97511408]
[1746444252881,2.67309758,94567.0,94566.0,7.97511408]
[1746444253087,2.67309758,94567.0,94566.0,7.95851535]
[1746444253948,2.50828203,94567.0,94566.0,7.95851535]
[1746444254150,2.61187803,94567.0,94566.0,7.95851535]
[1746444255236,2.96231803,94567.0,94566.0,7.95851535]
[1746444256222,2.96231803,94567.0,94566.0,7.94191676]
[1746444256479,2.97891663,94567.0,94566.0,7.94191676]
[1746444257208,2.96231803,94567.0,94566.0,7.94191676]
[1746444257608,2.96231803,94567.0,94566.0,7.92916993]
[1746444258515,2.96131803,94567.0,94566.0,7.92916993]
[1746444259384,2.96131803,94567.0,94566.0,7.92216993]
[1746444259698,3.07514203,94567.0,94566.0,7.92216993]
[1746444260374,3.09174124,94567.0,94566.0,7.90557072]
[1746444261709,3.05110493,94567.0,94566.0,7.90557072]
[1746444261919,3.06887806,94567.0,94566.0,7.90557072]
[1746444263042,3.04003706,94567.0,94566.0,7.90557072]
[1746444264085,3.02226393,94567.0,94566.0,7.90557072]
[1746444264497,3.04003706,94567.0,94566.0,7.90557072]
[1746444264932,3.02226393,94567.0,94566.0,7.90557072]
[1746444265165,3.04003706,94567.0,94566.0,7.90557072]
[1746444265372,3.00484406,94567.0,94566.0,7.90557072]
[1746444265901,2.83368493,94567.0,94566.0,7.89282389]
[1746444266113,2.83368493,94567.0,94566.0,7.92312389]
[1746444266321,2.78368493,94567.0,94566.0,7.90659042]
[1746444266495,2.76708572,94567.0,94566.0,7.89959042]
[1746444267241,2.61708572,94567.0,94566.0,7.89959042]
[1746444267566,2.61608572,94567.0,94566.0,7.88684501]
[1746444268200,2.76608572,94567.0,94566.0,7.88684501]
[1746444269133,2.61608572,94567.0,94566.0,7.88684501]
[1746444269714,2.63268402,94567.0,94566.0,7.87024672]
[1746444269924,2.78268402,94567.0,94566.0,7.87024672]
[1746444271719,2.76286378,94567.0,94566.0,7.87024672]
[1746444271919,2.78270644,94567.0,94566.0,7.87024672]
[1746444273567,2.78270644,94567.0,94566.0,7.86324672]
[1746444276338,2.76610814,94567.0,94566.0,7.86324672]
[1746444277555,2.51610814,94567.0,94566.0,7.86324672]
[1746444277679,2.66610814,94567.0,94566.0,7.86324672]
[1746444278335,2.63910814,94567.0,94566.0,7.86324672]
[1746444278541,2.64610814,94567.0,94566.0,7.86324672]
[1746444278919,2.66010814,94567.0,94566.0,7.86324672]
[1746444280050,2.66010814,94567.0,94566.0,7.85050156]
[1746444280581,2.66010814,94567.0,94566.0,7.84350156]
[1746444282567,2.66010814,94567.0,94566.0,7.8268944]
[1746444284125,2.36010814,94567.0,94566.0,7.8268944]
[1746444284479,2.64026548,94567.0,94566.0,7.8268944]
[1746444284899,2.34026548,94567.0,94566.0,7.8268944]
[1746444285159,2.64026548,94567.0,94566.0,7.8268944]
[1746444286350,2.65686436,94567.0,94566.0,7.81028736]
[1746444286557,2.64026548,94567.0,94566.0,7.81028736]
[1746444287584,2.64026548,94567.0,94566.0,7.80328736]
[1746444287798,2.66015276,94567.0,94566.0,7.80328736]
[1746444290045,2.67675106,94567.0,94566.0,7.80328736]
[1746444290265,2.65686378,94567.0,94566.0,7.80328736]
[1746444290787,2.65686378,94567.0,94566.0,7.78675431]
[1746444293659,2.65686378,94567.0,94566.0,7.77022125]
[1746444294460,2.67676445,94567.0,94566.0,7.77022125]
[1746444294678,2.67676445,94567.0,94566.0,7.76322125]
[1746444296234,2.65686378,94567.0,94566.0,7.76322125]
[1746444297254,2.67677019,94567.0,94566.0,7.76322125]
[1746444299584,2.67677019,94567.0,94566.0,7.7504761]
[1746444299791,2.67677019,94567.0,94566.0,7.73773095]
[1746444300298,2.66017189,94567.0,94566.0,7.73773095]
[1746444301730,2.66017189,94567.0,94566.0,7.73073095]
[1746444302706,2.67676987,94567.0,94566.0,7.73073095]
[1746444303073,2.67676987,94567.0,94566.0,7.71419744]
[1746444306485,2.66017189,94567.0,94566.0,7.69759028]
[1746444308856,2.66017189,94567.0,94566.0,7.69059028]
[1746444309438,2.67676992,94567.0,94566.0,7.69059028]
[1746444310587,2.67676992,94567.0,94566.0,7.67784499]
[1746444310963,2.67676992,94567.0,94566.0,7.6650997]
[1746444315946,2.67676992,94567.0,94566.0,7.6580997]
[1746444319450,2.66017189,94567.0,94566.0,7.6580997]
[1746444320823,2.66017189,94567.0,94566.0,7.64535444]
[1746444323052,2.66017189,94567.0,94566.0,7.63835444]
[1746444327405,2.66017189,94567.0,94566.0,7.63795444]
[1746444330116,2.66017189,94567.0,94566.0,7.62520918]
[1746444330940,2.66017189,94567.0,94566.0,7.61246392]
[1746444331141,2.66017189,94567.0,94566.0,7.60546392]
[1746444338151,2.66017189,94567.0,94566.0,7.59846392]
[1746444340731,2.66017189,94567.0,94566.0,7.58571865]
[1746444340897,2.66017189,94567.0,94566.0,7.57297338]
[1746444345108,2.66017189,94567.0,94566.0,7.56597338]
[1746444345303,2.67843243,94567.0,94566.0,7.56597338]
[1746444345765,2.66017189,94567.0,94566.0,7.56597338]
[1746444346019,2.67677053,94567.0,94566.0,7.54943981]
[1746444346420,2.67677053,94567.0,94566.0,7.51913981]
[1746444346598,2.67677053,94567.0,94566.0,7.55023981]
[1746444347373,2.66277053,94567.0,94566.0,7.55023981]
[1746444347611,2.65277053,94567.0,94566.0,7.55023981]
[1746444347971,2.67977053,94567.0,94566.0,7.55023981]
[1746444350999,2.67977053,94567.0,94566.0,7.53749414]
[1746444351404,2.67977053,94567.0,94566.0,7.52474848]
[1746444352078,2.67977053,94567.0,94566.0,7.50814126]
[1746444352378,2.67977053,94567.0,94566.0,7.50114126]
[1746444352579,2.68077053,94567.0,94566.0,7.47004126]
[1746444355659,2.68077053,94567.0,94566.0,7.48624126]
[1746444355864,2.68077053,94567.0,94566.0,7.48514126]
[1746444356064,2.66417189,94567.0,94566.0,7.48360769]
[1746444359318,2.68077044,94567.0,94566.0,7.47660769]
[1746444359743,2.68059927,94567.0,94566.0,7.47660769]
[1746444360955,2.68059927,94567.0,94566.0,7.46386192]
[1746444361619,2.68059927,94567.0,94566.0,7.45111615]
[1746444361830,2.68059927,94567.0,94566.0,7.06811818]
[1746444361831,4.12947578,94567.0,94566.0,7.06811818]
[1746444362028,4.22947578,94567.0,94566.0,7.06811818]
[1746444362429,3.87903578,94567.0,94566.0,7.01465163]
[1746444362636,2.42949278,94567.0,94566.0,7.01465163]
[1746444362855,2.44749278,94567.0,94566.0,7.01465163]
[1746444363174,4.75601478,94567.0,94566.0,6.9981184]
[1746444363350,4.71101478,94567.0,94566.0,6.9981184]
[1746444363571,4.73001478,94567.0,94566.0,6.97910995]
[1746444363752,4.78001478,94567.0,94566.0,6.97910995]
[1746444364523,4.80701478,94567.0,94566.0,6.97910995]
[1746444364923,4.80701478,94567.0,94566.0,6.97027581]
[1746444365124,4.76101478,94567.0,94566.0,6.97027581]
[1746444365367,5.13049478,94567.0,94566.0,6.97027581]
[1746444366007,5.11149478,94567.0,94566.0,6.97027581]
[1746444366180,5.11149478,94567.0,94566.0,6.95374215]
[1746444366486,5.13849478,94567.0,94566.0,6.92273297]
[1746444366641,5.15749478,94567.0,94566.0,6.92273297]
[1746444366842,4.80701478,94567.0,94566.0,5.68272429]
[1746444367047,4.80701478,94567.0,94566.0,5.63082172]
[1746444367626,4.78001478,94567.0,94566.0,5.63082172]
[1746444367828,4.76341623,94567.0,94566.0,5.63082172]
[1746444368030,4.79041623,94567.0,94566.0,5.63082172]
[1746444368240,4.74441623,94567.0,94566.0,5.63082172]
[1746444368441,4.79041623,94567.0,94566.0,5.63082172]
[1746444368884,4.79041623,94567.0,94566.0,5.60682172]
[1746444369085,4.77141623,94567.0,94566.0,5.60682172]
[1746444369407,4.76441623,94567.0,94566.0,5.60682172]
[1746444369537,4.79141623,94567.0,94566.0,5.60682172]
[1746444369740,4.79141623,94567.0,94566.0,4.69181304]
[1746444370707,4.80801592,94567.0,94566.0,4.69181304]
[1746444370922,4.80801592,94567.0,94566.0,4.67527937]
[1746444371089,4.80795803,94567.0,94566.0,4.67527937]
[1746444372368,4.78874236,94567.0,94566.0,4.67527937]
[1746444373517,4.78874236,94567.0,94566.0,4.66827937]
[1746444375149,4.80795803,94567.0,94566.0,4.66827937]
[1746444375482,5.15847803,94567.0,94566.0,4.66827937]
[1746444375822,5.15847803,94567.0,94566.0,4.65086903]
[1746444376459,5.14187834,94567.0,94566.0,4.65086903]
[1746444378154,5.14187834,94567.0,94566.0,4.65056903]
[1746444378530,4.79135834,94567.0,94566.0,4.65056903]
[1746444380169,4.77135834,94567.0,94566.0,4.65056903]
[1746444380406,4.79235834,94567.0,94566.0,4.65056903]
[1746444380603,4.76535834,94567.0,94566.0,4.64356903]
[1746444380819,4.79235834,94567.0,94566.0,4.63082036]
[1746444381352,4.79235834,94567.0,94566.0,4.63012036]
[1746444381845,4.79235834,94567.0,94566.0,4.62952036]
[1746444382182,4.79235834,94567.0,94566.0,4.62902036]
[1746444383058,4.79235834,94567.0,94566.0,4.30402036]
[1746444383233,2.51083634,94567.0,94566.0,4.28002036]
[1746444383779,7.51083634,94567.0,94566.0,4.28002036]
[1746444385126,7.46283634,94567.0,94566.0,4.28002036]
[1746444385261,7.81335634,94567.0,94566.0,3.36501168]
[1746444385460,7.14083634,94567.0,94566.0,2.64671469]
[1746444385658,7.43285345,94567.0,94566.0,1.73991638]
[1746444385844,7.57432067,94567.0,94566.0,1.58954629]
[1746444386059,2.56432067,94567.0,94566.0,1.32008764]
[1746444386296,2.56432067,94567.0,94566.0,0.39059832]
[1746444386297,3.08858975,94567.0,94566.0,0.39059832]
[1746444386470,3.12672154,94567.0,94560.0,0.00018041]
[1746444386673,0.9323873,94562.0,94561.0,12.52816996]
[1746444386881,4.68883377,94562.0,94561.0,12.50000438]
[1746444387080,4.68741033,94562.0,94561.0,12.40938428]
[1746444387281,4.71932133,94562.0,94561.0,12.39565777]
[1746444387483,4.71260833,94562.0,94561.0,12.37677432]
[1746444387684,4.75194202,94562.0,94561.0,11.45476564]
[1746444388021,4.77894202,94562.0,94561.0,11.45476564]
[1746444388215,5.27894202,94562.0,94561.0,11.45476564]
[1746444388373,5.30594202,94562.0,94561.0,11.12391866]
[1746444388553,5.30594202,94562.0,94561.0,11.07275818]
[1746444388777,5.80594202,94562.0,94561.0,11.07275818]
[1746444390223,5.80152908,94562.0,94561.0,10.99745804]
[1746444390423,5.77510091,94562.0,94561.0,10.93345748]
[1746444390699,5.80775684,94562.0,94561.0,9.99971946]
[1746444390903,5.80775684,94562.0,94561.0,9.98913101]
[1746444391455,5.80775684,94562.0,94561.0,9.67309449]
[1746444391655,5.99605684,94562.0,94561.0,9.67309449]
[1746444391854,5.83151599,94562.0,94561.0,9.67309449]
[1746444392067,5.98151599,94562.0,94561.0,9.67309449]
[1746444392665,5.99605684,94562.0,94561.0,9.67309449]
[1746444393735,5.99605684,94562.0,94561.0,8.75808581]
[1746444393942,5.99605684,94562.0,94561.0,8.69859781]
[1746444394241,2.53132184,94562.0,94561.0,8.69859781]
[1746444394643,5.99605684,94562.0,94561.0,8.69159781]
[1746444395402,6.48697684,94562.0,94561.0,8.69159781]
[1746444396166,5.99605684,94562.0,94561.0,8.66759781]
[1746444396588,5.99605684,94562.0,94561.0,8.65268644]
[1746444396794,5.99605684,94562.0,94561.0,7.42164124]
[1746444397008,4.92496877,94562.0,94561.0,6.27023965]
[1746444397370,4.92268151,94562.0,94561.0,6.20084576]
[1746444397506,4.92268151,94562.0,94561.0,6.17310828]
[1746444397707,4.93640802,94562.0,94561.0,6.17310828]
[1746444398145,5.4165595,94562.0,94561.0,6.17310828]
[1746444398715,5.4165595,94562.0,94561.0,6.16251814]
[1746444399124,5.43345302,94562.0,94561.0,5.98648837]
[1746444399641,5.45320171,94562.0,94561.0,5.97170597]
[1746444399843,5.4394752,94562.0,94561.0,4.81518301]
[1746444400013,5.45320171,94562.0,94561.0,4.64917507]
[1746444400208,5.43708202,94562.0,94561.0,4.64917507]
[1746444400428,5.45435968,94562.0,94561.0,4.64917507]
[1746444400636,5.45435968,94562.0,94561.0,4.61655017]
[1746444401057,5.45435968,94562.0,94561.0,4.48701443]
[1746444401227,5.44303768,94562.0,94561.0,4.48701443]
[1746444401463,5.42614416,94562.0,94561.0,4.48701443]
[1746444401669,5.38008916,94562.0,94561.0,4.44112443]
[1746444401864,5.38008916,94562.0,94561.0,4.43412443]
[1746444402261,5.35880616,94562.0,94561.0,4.41284143]
[1746444402659,5.31749616,94562.0,94561.0,3.82259736]
[1746444402908,5.31749616,94562.0,94561.0,3.45652275]
[1746444403611,5.28031616,94562.0,94561.0,3.41934275]
[1746444404229,4.18539465,94562.0,94561.0,2.28555644]
[1746444404434,4.19912116,94562.0,94561.0,2.27182993]
[1746444404628,4.19912116,94562.0,94561.0,2.20040629]
[1746444405207,4.19912116,94562.0,94561.0,1.88436977]
[1746444405451,4.10817216,94562.0,94561.0,1.79342077]
[1746444405668,4.10817216,94562.0,94561.0,1.79023577]
[1746444405843,4.10817216,94562.0,94561.0,1.33784744]
[1746444407083,4.07716799,94562.0,94561.0,1.33784744]
[1746444407294,4.10817216,94562.0,94561.0,1.33784744]
[1746444407715,4.09444565,94562.0,94561.0,1.33784744]
[1746444408269,4.09444565,94562.0,94561.0,1.33576786]
[1746444408699,4.20624565,94562.0,94561.0,1.33576786]
[1746444408905,4.20624565,94562.0,94561.0,1.32876786]
[1746444409117,4.20624565,94562.0,94561.0,1.31817527]
[1746444410522,3.10542465,94562.0,94561.0,1.31817527]
[1746444410685,4.18896799,94562.0,94561.0,1.31817527]
[1746444410884,4.18896799,94562.0,94561.0,1.30541898]
[1746444411422,4.07716799,94562.0,94561.0,1.29482541]
[1746444412765,4.07716799,94562.0,94561.0,1.27356673]
[1746444413927,4.07716799,94562.0,94561.0,1.24709438]
[1746444415072,4.07716799,94562.0,94561.0,1.2258357]
[1746444415281,4.56816799,94562.0,94561.0,1.2130795]
[1746444415445,4.42788799,94562.0,94561.0,1.2065795]
[1746444415660,4.53968799,94562.0,94561.0,1.2065795]
[1746444415842,4.20663799,94562.0,94561.0,1.16887389]
[1746444416047,4.20663799,94562.0,94561.0,1.16187389]
[1746444416296,4.20663799,94562.0,94561.0,1.14061521]
[1746444416467,4.20663799,94562.0,94561.0,1.13381521]
[1746444416667,4.19372799,94562.0,94561.0,1.13381521]
[1746444416867,4.19372799,94562.0,94561.0,1.11728089]
[1746444417286,4.15372799,94562.0,94561.0,1.07728089]
[1746444417492,4.15372799,94562.0,94561.0,1.05080854]
[1746444417649,4.13489799,94562.0,94561.0,1.03197854]
[1746444418049,4.13489799,94562.0,94561.0,0.91305454]
[1746444418543,4.11807331,94562.0,94561.0,0.89610454]
[1746444418742,4.07807331,94562.0,94561.0,0.85610454]
[1746444419605,4.06282331,94562.0,94561.0,0.84085454]
[1746444420416,4.02282331,94562.0,94561.0,0.80085454]
[1746444420625,4.00909331,94562.0,94561.0,0.76954254]
[1746444420933,4.00909331,94562.0,94561.0,0.75678558]
[1746444421132,4.00909331,94562.0,94561.0,0.63786158]
[1746444421334,3.12747747,94562.0,94561.0,0.04906583]
[1746444421606,0.89042911,94557.0,94556.0,12.87503144]
[1746444421869,6.2339938,94557.0,94556.0,12.8754973]
[1746444422075,6.25386781,94557.0,94556.0,12.8754973]
[1746444422312,6.78578281,94557.0,94556.0,12.81816268]
[1746444422486,1.78578281,94557.0,94556.0,12.81816268]
[1746444422831,7.28578281,94557.0,94556.0,12.7957834]
[1746444423097,7.31278281,94557.0,94556.0,12.76867449]
[1746444423295,7.31278281,94557.0,94556.0,12.70326617]
[1746444423492,7.30866899,94557.0,94556.0,12.68240561]
[1746444423638,7.28166899,94557.0,94556.0,12.68240561]
[1746444424104,7.30866899,94557.0,94556.0,12.68240561]
[1746444424396,7.26651776,94557.0,94556.0,12.63154456]
[1746444424607,7.26651776,94557.0,94556.0,12.61529529]
[1746444424767,7.30841292,94557.0,94556.0,12.61529529]
[1746444424962,7.33541292,94557.0,94556.0,12.61529529]
[1746444425192,7.47569292,94557.0,94556.0,12.61529529]
[1746444425393,7.47569292,94557.0,94556.0,12.57698651]
[1746444425394,7.29916769,94557.0,94556.0,12.57698651]
[1746444425638,6.28124445,94557.0,94556.0,12.57698651]
[1746444425812,6.28124445,94557.0,94556.0,12.56422866]
[1746444426155,6.27719182,94557.0,94556.0,12.51874016]
[1746444426359,6.29656972,94557.0,94556.0,12.49686136]
[1746444427082,6.27745374,94557.0,94556.0,12.49686136]
[1746444427306,6.29736107,94557.0,94556.0,12.49686136]
[1746444427507,6.29736107,94557.0,94556.0,12.47911257]
[1746444427684,2.29764874,94557.0,94556.0,12.47911257]
[1746444428016,7.31755607,94557.0,94556.0,12.47911257]
[1746444428252,7.81755607,94557.0,94556.0,12.47911257]
[1746444428549,7.47678307,94557.0,94556.0,12.47911257]
[1746444428909,7.15434799,94557.0,94556.0,12.49451257]
[1746444429118,6.97701838,94557.0,94556.0,12.47724315]
[1746444429322,6.95410159,94557.0,94556.0,12.42044158]
[1746444429524,6.99371831,94557.0,94556.0,12.42044158]
[1746444429980,6.96671831,94557.0,94556.0,12.40494158]
[1746444430111,6.96671831,94557.0,94556.0,12.38254158]
[1746444430508,6.96009472,94557.0,94556.0,12.38254158]
[1746444430748,6.98709472,94557.0,94556.0,12.38254158]
[1746444431125,6.81816372,94557.0,94556.0,12.3461009]
[1746444431535,6.81816372,94557.0,94556.0,12.30569802]
[1746444431868,6.80892922,94557.0,94556.0,12.28763447]
[1746444432015,6.64700085,94557.0,94556.0,12.30263447]
[1746444432224,6.48468325,94557.0,94556.0,12.30263447]
[1746444432899,6.50729985,94557.0,94556.0,12.30263447]
[1746444433101,6.52605688,94557.0,94556.0,12.18371047]
[1746444435152,6.66633688,94557.0,94556.0,12.18371047]
[1746444435357,6.52605688,94557.0,94556.0,12.18371047]
[1746444435664,6.52605688,94557.0,94556.0,12.18052547]
[1746444435873,6.52605688,94557.0,94556.0,12.134889]
[1746444436101,6.52605688,94557.0,94556.0,12.12213212]
[1746444437158,6.50729985,94557.0,94556.0,12.10454269]
[1746444437578,6.52605688,94557.0,94556.0,12.10454269]
[1746444438368,6.52605688,94557.0,94556.0,11.99723984]
[1746444439258,6.48468325,94557.0,94556.0,11.99723984]
[1746444439426,6.50729985,94557.0,94556.0,11.99723984]
[1746444439633,6.50729985,94557.0,94556.0,11.97597895]
[1746444440252,6.48468325,94557.0,94556.0,11.97597895]
[1746444440458,6.52605688,94557.0,94556.0,11.91651695]
[1746444440685,3.03822088,94557.0,94556.0,11.91651695]
[1746444440851,8.03822088,94557.0,94556.0,11.91651695]
[1746444441261,8.03822088,94557.0,94556.0,11.90376006]
[1746444441460,8.03822088,94557.0,94556.0,11.87648648]
[1746444441826,7.73989088,94557.0,94556.0,11.87648648]
[1746444442076,7.63809688,94557.0,94556.0,11.87648648]
[1746444442274,7.31556188,94557.0,94556.0,11.87648648]
[1746444443346,7.13637788,94557.0,94556.0,11.87648648]
[1746444443542,7.12576388,94557.0,94556.0,11.76908495]
[1746444444290,7.12576388,94557.0,94556.0,11.6372275]
[1746444444694,7.12576388,94557.0,94556.0,11.61596661]
[1746444444924,7.12576388,94557.0,94556.0,11.63246661]
[1746444445129,7.12576388,94557.0,94556.0,11.58016903]
[1746444445307,7.61680388,94557.0,94556.0,11.58016903]
[1746444445817,7.61680388,94557.0,94556.0,11.59636903]
[1746444446316,7.61680388,94557.0,94556.0,11.54380278]
[1746444446519,7.61680388,94557.0,94556.0,11.53104585]
[1746444446919,7.12576388,94557.0,94556.0,11.49834585]
[1746444447298,7.12576388,94557.0,94556.0,11.44551729]
[1746444447498,7.12576388,94557.0,94556.0,11.40287311]
[1746444447699,7.12379172,94557.0,94556.0,11.40287311]
[1746444450663,7.12379172,94557.0,94556.0,11.37878811]
[1746444451176,7.12379172,94557.0,94556.0,11.31788211]
[1746444451312,7.12379172,94557.0,94556.0,11.30512492]
[1746444452007,7.12379172,94557.0,94556.0,10.51792192]
[1746444452447,6.25825272,94557.0,94556.0,9.24006492]
[1746444452649,3.91838772,94557.0,94556.0,6.88706992]
[1746444454865,3.91838772,94557.0,94556.0,6.83485094]
[1746444455283,4.40942772,94557.0,94556.0,6.83485094]
[1746444455800,4.26914772,94557.0,94556.0,6.83145094]
[1746444456146,4.26914772,94557.0,94556.0,6.8312781]
[1746444456738,4.26914772,94557.0,94556.0,6.8114091]
[1746444457863,3.89774328,94557.0,94556.0,6.8114091]
[1746444458064,3.89774328,94557.0,94556.0,6.7471631]
[1746444458215,3.89774328,94557.0,94556.0,6.5875711]
[1746444459046,4.00954328,94557.0,94556.0,6.4598851]
[1746444459220,3.89774328,94557.0,94556.0,6.3322111]
[1746444459426,3.89774328,94557.0,94556.0,6.3109321]
[1746444459657,3.89774328,94557.0,94556.0,6.2613741]
[1746444460176,3.89774328,94557.0,94556.0,6.1762581]
[1746444461583,3.89774328,94557.0,94556.0,6.16349967]
[1746444462801,3.89774328,94557.0,94556.0,5.83849967]
[1746444464313,3.89774328,94557.0,94556.0,5.83529967]
[1746444464534,4.00954328,94557.0,94556.0,5.59360867]
[1746444464709,4.0303656,94557.0,94556.0,5.59360867]
[1746444465270,4.3541656,94557.0,94556.0,5.59122367]
[1746444465440,4.3541656,94557.0,94556.0,5.57527918]
[1746444465592,4.3541656,94557.0,94556.0,5.55279718]
[1746444465792,4.3541656,94557.0,94556.0,4.89734318]
[1746444466013,4.3811656,94557.0,94556.0,4.89734318]
[1746444466211,4.0303656,94557.0,94556.0,4.89734318]
[1746444466412,4.0303656,94557.0,94556.0,4.89414318]
[1746444466621,4.0303656,94557.0,94556.0,4.86235118]
[1746444467046,4.00954328,94557.0,94556.0,4.86235118]
[1746444467274,4.00954328,94557.0,94556.0,4.45848618]
[1746444467666,3.98254328,94557.0,94556.0,4.45848618]
[1746444467868,4.00954328,94557.0,94556.0,4.45848618]
[1746444468005,4.00954328,94557.0,94556.0,2.15331518]
[1746444468362,4.00954328,94557.0,94556.0,1.88382308]
[1746444469034,4.00954328,94557.0,94556.0,1.86223908]
[1746444469231,3.99078625,94557.0,94556.0,1.86223908]
[1746444469739,3.99078625,94557.0,94556.0,1.8040441]
[1746444469936,3.99397055,94557.0,94556.0,1.8040441]
[1746444470688,3.99397055,94557.0,94556.0,1.6463387]
[1746444472275,3.99397055,94557.0,94556.0,1.63357887]
[1746444472484,3.11183155,94557.0,94556.0,1.63357887]
[1746444472680,6.24837355,94557.0,94556.0,1.63357887]
[1746444473278,6.24837355,94557.0,94556.0,1.30857887]
[1746444473736,6.24837355,94557.0,94556.0,1.26068578]
[1746444475172,6.22481284,94557.0,94556.0,1.26068578]
[1746444475375,6.76296231,94557.0,94556.0,1.26068578]
[1746444475546,6.76296231,94557.0,94556.0,1.22128934]